[Event "ROU-ch Women 2018"]
[Site "Olanesti"]
[Date "2018.05.20"]
[Round "7"]
[White "Pancu, Aureliana-Eugenia"]
[Black "Panainte, Andreea-Bianca"]
[Result "0-1"]
[ECO "A05"]
[WhiteElo "1852"]
[BlackElo "1894"]
[Annotator "NA"]
[PlyCount "134"]
[EventDate "2018.??.??"]
[EventType "swiss"]
[EventCountry "ROU"]
[SourceTitle "playchess.com"]
[Source "ChessBase"]
[SourceQuality "1"]
[TimeControl "40/5400+30:1800+30"]

1. Nf3 {[%emt 0:00:00]} Nf6 {[%emt 0:00:07]} 2. g3 {[%emt 0:00:00]} d5 {[%emt 0:00:05]} 3. d4 {[%emt 0:00:32]} e6 {[%emt 0:00:12]} 4. Bg2 {[%emt 0:00:11]} c5 {[%emt 0:00:06]} 5. O-O {[%emt 0:00:32]} Nc6 {[%emt 0:00:07]} 6. b3 {[%emt 0:02:36]} cxd4 {[%emt 0:00:32]} 7. Nxd4 {[%emt 0:00:20]} e5 {[%emt 0:00:36] D02: 1 d4 d5 2 Nf3 sidelines, including 2...Nf6 3 g3 and 2...Nf6 3 Bf4} (7... Be7 8. Bb2 O-O 9. Nxc6 bxc6 10. c4 a5 11. Nc3 Ba6 12. Qc2 dxc4 13. Rfd1 cxb3 14. axb3 Qc7 15. Na4 Bb5 16. Bd4 Rad8 {0-1 (35) Pelletier,Y (2529)-Harikrishna,P (2737) Biel 2017}) 8. Nxc6 {[%emt 0:00:13]} bxc6 {[%emt 0:00:06]} 9. Bb2 {[%emt 0:00:28]} Bd6 {[%emt 0:00:30]} 10. c4 {[%emt 0:02:34]} Bb7 {[%emt 0:00:47]} 11. Qc2 $146 {[%emt 0:03:11]} ({Predecessor:} 11. cxd5 cxd5 12. Nc3 Qa5 13. a3 Rd8 14. b4 Qb6 15. Nxd5 Bxd5 16. Bxd5 Nxd5 17. Qxd5 {1-0 (39) Lainburg,V (2173)-Hellwege,W (1996) Bad Neuenahr 2014}) 11... Qe7 {[%emt 0:02:13]} 12. Nd2 {[%emt 0:01:20]} O-O {[%emt 0:00:51]} 13. Rac1 {[%emt 0:01:15]} e4 {[%emt 0:04:57]} 14. e3 {[%emt 0:03:27]} Nd7 {[%emt 0:01:04]} 15. Rce1 {[%emt 0:15:05]} Nc5 {[%emt 0:01:50]} 16. Ba3 {[%emt 0:13:04]} Nd3 {[%emt 0:01:58]} 17. Bxd6 {[%emt 0:00:09]} Qxd6 {[%emt 0:00:06]} 18. Rd1 {[%emt 0:00:29]} f5 {[%emt 0:00:24]} 19. Nb1 {[%emt 0:04:53]} g5 {[%emt 0:04:43]} 20. f4 {[%emt 0:03:25]} gxf4 {[%emt 0:03:10]} 21. gxf4 {[%emt 0:03:07]} Rf6 {[%emt 0:00:58]} 22. Rxd3 {[%emt 0:02:16]} exd3 {[%emt 0:00:25]} 23. Qxd3 {[%emt 0:00:12]} dxc4 {[%emt 0:01:12]} 24. Qxc4+ {[%emt 0:00:17]} Qe6 {[%emt 0:00:27]} 25. Qc1 {[%emt 0:01:51]} Rg6 {[%emt 0:00:54]} 26. Kh1 {[%emt 0:04:42]} Re8 {[%emt 0:01:31]} 27. Re1 {[%emt 0:01:44]} Qf6 {[%emt 0:02:00]} 28. Nd2 {[%emt 0:03:11]} Qg7 {[%emt 0:01:16]} 29. Bf3 {[%emt 0:01:53]} Kh8 {[%emt 0:13:50]} 30. Qc5 {[%emt 0:05:34]} Rg8 {[%emt 0:00:36]} 31. e4 {[%emt 0:00:17]} fxe4 {[%emt 0:05:48]} 32. Nxe4 Re8 {[%emt 0:07:14]} 33. Rd1 {[%emt 0:08:37]} Rg8 {[%emt 0:20:53]} 34. f5 {[%emt 0:06:19]} Rh6 {[%emt 0:01:17]} 35. Qd4 {[%emt 0:03:14]} Qxd4 {[%emt 0:00:33]} 36. Rxd4 {[%emt 0:00:02]} Rh3 {[%emt 0:01:14]} 37. Bg2 {[%emt 0:02:08]} Re3 {[%emt 0:00:57]} 38. Rd1 {[%emt 0:03:17]} Re2 {[%emt 0:01:21]} 39. Ng3 {[%emt 0:01:33]} Rxa2 {[%emt 0:00:25]} 40. Kg1 {[%emt 0:00:00]} h5 {[%emt 0:04:31]} 41. Rd6 {[%emt 0:03:17]} Re8 {[%emt 0:02:18]} 42. Be4 {[%emt 0:05:27]} h4 {[%emt 0:07:21]} 43. Rh6+ {[%emt 0:00:16]} Kg7 {[%emt 0:00:03]} 44. Rxh4 {[%emt 0:00:07]} Rd8 {[%emt 0:00:25]} 45. Rf4 {[%emt 0:07:12]} Rd1+ {[%emt 0:00:58]} 46. Nf1 {[%emt 0:00:45]} Kf6 {[%emt 0:01:16]} 47. Bf3 {[%emt 0:08:12]} Rb1 {[%emt 0:02:03]} 48. Rc4 $19 {[%emt 0:05:06]} Raa1 {[%emt 0:02:37]} 49. Be2 {[%emt 0:01:06]} Rxb3 {[%emt 0:00:36]} 50. Rc5 {[%emt 0:01:52]} Rb2 {[%emt 0:01:50]} 51. Kf2 {[%emt 0:00:37]} a5 {[%emt 0:02:35]} 52. Ng3 {[%emt 0:00:10]} Rb4 {[%emt 0:00:22]} 53. Nh5+ {[%emt 0:01:18]} Kf7 {[%emt 0:00:38]} 54. Bc4+ {[%emt 0:00:28]} Kf8 {[%emt 0:00:04]} 55. Nf4 {[%emt 0:02:24]} Rc1 {[%emt 0:01:56]} 56. Ng6+ {[%emt 0:01:24]} Kg7 {[%emt 0:00:28]} 57. Ne5 {[%emt 0:00:13]} a4 {[%emt 0:00:51]} 58. Ke3 {[%emt 0:02:56]} a3 {[%emt 0:00:42]} 59. Kd2 {[%emt 0:00:02]} Rcxc4 {[%emt 0:08:10]} 60. Nxc4 {[%emt 0:02:09]} a2 {[%emt 0:00:09]} 61. Ra5 {[%emt 0:00:02]} Rxc4 {[%emt 0:00:18]} 62. Rxa2 {[%emt 0:00:05]} Kf6 {[%emt 0:00:09]} 63. Ra5 {[%emt 0:00:11]} Rh4 {[%emt 0:00:25]} 64. Ke3 {[%emt 0:00:24]} Rxh2 {[%emt 0:00:12]} 65. Kd4 {[%emt 0:00:15]} Rb2 {[%emt 0:00:34]} 66. Kc4 {[%emt 0:00:44]} Bc8 {[%emt 0:01:27]} 67. Kc3 {[%emt 0:00:44]} Rb5 {[%emt 0:00:12]} 0-1

[Event "ROU-ch Women 2018"]
[Site "Olanesti"]
[Date "2018.05.21"]
[Round "8"]
[White "Panainte, Andreea-Bianca"]
[Black "Coman, Emilia-Florentina"]
[Result "1/2-1/2"]
[ECO "C14"]
[WhiteElo "1894"]
[BlackElo "1869"]
[Annotator "NA"]
[PlyCount "59"]
[EventDate "2018.??.??"]
[EventType "swiss"]
[EventCountry "ROU"]
[SourceTitle "playchess.com"]
[Source "ChessBase"]
[SourceQuality "1"]
[TimeControl "40/5400+30:1800+30"]

1. e4 e6 {[%emt 0:02:10]} 2. d4 {[%emt 0:00:00]} d5 {[%emt 0:00:09]} 3. Nc3 {[%emt 0:00:00]} Nf6 {[%emt 0:00:03]} 4. Bg5 {[%emt 0:00:00]} Be7 {[%emt 0:00:04]} 5. e5 {[%emt 0:00:00]} Nfd7 {[%emt 0:00:04]} 6. Bxe7 {[%emt 0:00:00]} Qxe7 {[%emt 0:00:04]} 7. f4 {[%emt 0:00:04]} a6 {[%emt 0:00:09]} 8. Nf3 {[%emt 0:00:08]} c5 {[%emt 0:00:04]} 9. Qd2 {[%emt 0:00:28]} Nc6 {[%emt 0:00:10]} 10. dxc5 {[%emt 0:00:05]} Nxc5 {[%emt 0:00:21]} 11. Bd3 {[%emt 0:00:08]} Nxd3+ {[%emt 0:01:53]} 12. cxd3 {[%emt 0:02:43]} O-O {[%emt 0:01:29]} 13. d4 {[%emt 0:00:13]} b5 {[%emt 0:02:27]} 14. O-O {[%emt 0:01:00]} Bd7 {[%emt 0:06:54]} 15. b3 {[%emt 0:06:33]} Na7 {[%emt 0:15:36]} 16. Qd3 {[%emt 0:10:30]} h6 {[%emt 0:10:35]} 17. f5 {[%emt 0:02:39]} f6 {[%emt 0:05:25]} 18. Nh4 {[%emt 0:05:29]} Be8 {[%emt 0:02:38]} 19. fxe6 {[%emt 0:05:53]} Qxe6 {[%emt 0:00:26]} 20. exf6 {[%emt 0:06:17]} Rxf6 {[%emt 0:00:27]} 21. Rae1 {[%emt 0:00:28]} Rxf1+ {[%emt 0:04:08]} 22. Qxf1 {[%emt 0:00:16]} Qf7 {[%emt 0:01:06]} 23. Nf5 {[%emt 0:00:33]} Nc6 {[%emt 0:00:38]} 24. Nd6 {[%emt 0:03:48]} Qxf1+ {[%emt 0:01:10]} 25. Kxf1 {[%emt 0:00:03]} Bh5 {[%emt 0:03:37]} 26. h3 {[%emt 0:12:06]} b4 {[%emt 0:14:46]} 27. Nxd5 {[%emt 0:06:53]} Rd8 {[%emt 0:02:02]} 28. Re6 Nxd4 {[%emt 0:00:44]} 29. Re4 {[%emt 0:02:41]} Nc6 30. Re1 1/2-1/2

[Event "ROU-ch Women 2018"]
[Site "Olanesti"]
[Date "2018.05.22"]
[Round "9"]
[White "Panainte, Andreea-Bianca"]
[Black "Dragomirescu, Angela"]
[Result "0-1"]
[ECO "B09"]
[WhiteElo "1894"]
[BlackElo "2272"]
[Annotator "NA RC"]
[PlyCount "58"]
[EventDate "2018.??.??"]
[EventType "swiss"]
[EventCountry "ROU"]
[SourceTitle "playchess.com"]
[Source "ChessBase"]
[SourceQuality "1"]
[TimeControl "40/5400+30:1800+30"]

1. e4 {[%emt 0:00:00]} d6 {[%emt 0:00:08]} 2. d4 {[%emt 0:00:00]} Nf6 {[%emt 0:00:06]} 3. Nc3 {[%emt 0:00:00]} g6 {[%emt 0:00:15]} 4. f4 {[%emt 0:00:19]} Bg7 {[%emt 0:00:05]} 5. Nf3 {[%emt 0:00:04]} O-O {[%emt 0:00:04]} 6. Bd3 {[%emt 0:00:11]} Na6 {[%emt 0:00:07]} 7. O-O {[%emt 0:00:45]} c5 {[%emt 0:00:08]} 8. e5 {[%emt 0:03:21]} Nd7 {[%emt 0:02:09]} 9. Ne4 {[%emt 0:07:02]} cxd4 {[%emt 0:06:03]} 10. exd6 {[%emt 0:00:43]} Nac5 {[%emt 0:00:46]} 11. dxe7 {[%emt 0:02:15]} Qxe7 {[%emt 0:00:13]} 12. Re1 {[%emt 0:00:31]} Nxd3 {[%emt 0:01:32]} 13. cxd3 {[%emt 0:03:51]} Nb6 {[%emt 0:07:38]} 14. Qc2 {[%emt 0:02:05]} Qd8 {[%emt 0:10:16]} 15. Qf2 {[%emt 0:03:28]} Nd5 {[%emt 0:17:56]} 16. Bd2 {[%emt 0:03:49]} Qb6 {[%emt 0:00:09]} 17. b3 {[%emt 0:01:25]} Be6 {[%emt 0:07:36]} 18. Ne5 {[%emt 0:02:06]} Rac8 {[%emt 0:04:12]} 19. Nc4 {[%emt 0:03:31]} Qa6 {[%emt 0:01:55]} 20. h3 {[%emt 0:03:08]} Rfd8 {[%emt 0:09:13]} 21. a4 {[%emt 0:08:53]} Ne3 {[%emt 0:03:08]} 22. Rec1 {[%emt 0:03:21]} Bd5 {[%emt 0:02:11]} 23. Qh4 {[%emt 0:19:24]} Nxg2 {[%emt 0:10:59]} 24. Qg5 {[%emt 0:02:46]} Ne3 {[%emt 0:01:10]} 25. Ncd6 {[%emt 0:09:10]} Rxc1+ {[%emt 0:04:48]} 26. Rxc1 {[%emt 0:00:37]} f6 {[%emt 0:00:02]} 27. Qg3 {[%emt 0:18:08]} Bxe4 {[%emt 0:02:00]} 28. Nxe4 {[%emt 0:00:31]} Qxd3 {[%emt 0:00:19]} 29. Qf2 {[%emt 0:02:18]} Qxe4 {[%emt 0:00:11]} 0-1

[Event "ROU-ch Women 2018"]
[Site "Olanesti"]
[Date "2018.05.22"]
[Round "9"]
[White "Pancu, Aureliana-Eugenia"]
[Black "Schiopu, Andreea-Alexandra"]
[Result "0-1"]
[ECO "A06"]
[WhiteElo "1852"]
[BlackElo "1765"]
[Annotator "NA RC"]
[PlyCount "124"]
[EventDate "2018.??.??"]
[EventType "swiss"]
[EventCountry "ROU"]
[SourceTitle "playchess.com"]
[Source "ChessBase"]
[SourceQuality "1"]
[TimeControl "40/5400+30:1800+30"]

1. Nf3 {[%emt 0:00:00]} d5 {[%emt 0:00:24]} 2. d4 {[%emt 0:00:00]} e6 {[%emt 0:00:16]} 3. g3 {[%emt 0:00:18]} c5 {[%emt 0:00:24]} 4. Bg2 {[%emt 0:01:03]} Nc6 {[%emt 0:00:14]} 5. O-O {[%emt 0:00:11]} Nf6 {[%emt 0:01:10]} 6. b3 {[%emt 0:02:49]} Be7 7. Bb2 {[%emt 0:00:56]} O-O {[%emt 0:00:59]} 8. e3 {[%emt 0:03:50]} b6 {[%emt 0:00:35]} 9. Nbd2 {[%emt 0:01:29]} Ba6 {[%emt 0:01:17]} 10. Re1 {[%emt 0:00:22]} Rc8 {[%emt 0:00:17]} 11. Ne5 {[%emt 0:04:44]} cxd4 {[%emt 0:02:11]} 12. Nxc6 {[%emt 0:00:18]} Rxc6 {[%emt 0:00:09]} 13. exd4 {[%emt 0:00:38]} Qd7 {[%emt 0:01:18]} 14. a3 {[%emt 0:10:03]} Rfc8 {[%emt 0:00:37]} 15. Rc1 {[%emt 0:03:50]} R6c7 {[%emt 0:00:59]} 16. Nf3 {[%emt 0:08:55]} b5 {[%emt 0:03:27]} 17. Ne5 {[%emt 0:00:41]} Qd8 {[%emt 0:00:47]} 18. b4 {[%emt 0:05:10]} Nd7 {[%emt 0:01:38]} 19. Nd3 {[%emt 0:00:19]} Nb6 {[%emt 0:00:37]} 20. Nc5 {[%emt 0:05:55]} Bb7 {[%emt 0:00:21]} 21. Qd3 {[%emt 0:02:26]} Nc4 {[%emt 0:01:09]} 22. Rb1 {[%emt 0:00:10]} a5 {[%emt 0:04:04]} 23. Bc1 {[%emt 0:00:19]} axb4 {[%emt 0:01:45]} 24. axb4 {[%emt 0:00:09]} Ra8 {[%emt 0:01:46]} 25. Qe2 {[%emt 0:05:40]} Bc8 {[%emt 0:03:37]} 26. Bf1 {[%emt 0:03:14]} Ra2 {[%emt 0:05:04]} 27. Qd1 {[%emt 0:00:25]} Rca7 {[%emt 0:01:20]} 28. Bd3 {[%emt 0:02:38]} Bf6 {[%emt 0:01:45]} 29. c3 {[%emt 0:00:49]} Ra1 {[%emt 0:06:55]} 30. Rxa1 {[%emt 0:01:48]} Rxa1 {[%emt 0:00:13]} 31. Qe2 {[%emt 0:00:26]} Bg5 {[%emt 0:01:12]} 32. f4 {[%emt 0:00:26]} Be7 {[%emt 0:01:08]} 33. Be3 {[%emt 0:03:59]} Rxe1+ {[%emt 0:01:28]} 34. Qxe1 {[%emt 0:00:01]} h6 {[%emt 0:01:29]} 35. Kf2 {[%emt 0:01:48]} f6 {[%emt 0:02:40]} 36. Bc1 {[%emt 0:01:45]} Kf7 {[%emt 0:00:24]} 37. Qe2 {[%emt 0:00:14]} g6 {[%emt 0:01:02]} 38. h4 {[%emt 0:01:09]} h5 {[%emt 0:01:26]} 39. Qc2 {[%emt 0:01:08]} f5 {[%emt 0:00:19]} 40. Qa2 {[%emt 0:00:00]} Bxh4 {[%emt 0:03:22]} 41. Kf3 {[%emt 0:08:28]} Bf6 {[%emt 0:02:06]} 42. Be3 {[%emt 0:02:03]} h4 {[%emt 0:01:00]} 43. Qg2 {[%emt 0:02:28]} Qh8 {[%emt 0:01:17]} 44. Bxc4 {[%emt 0:02:21]} dxc4 {[%emt 0:00:54]} 45. Qh3 {[%emt 0:02:42]} hxg3 {[%emt 0:01:11]} 46. Qxh8 {[%emt 0:00:14]} Bxh8 {[%emt 0:00:03]} 47. Kxg3 {[%emt 0:00:15]} Kg7 {[%emt 0:01:31]} 48. Kf3 {[%emt 0:01:17]} Kh6 {[%emt 0:00:13]} 49. Bf2 {[%emt 0:00:10]} Bf6 {[%emt 0:00:24]} 50. Be3 {[%emt 0:01:59]} Kh5 {[%emt 0:00:15]} 51. Bc1 {[%emt 0:02:51]} Kh4 {[%emt 0:01:07]} 52. Bd2 {[%emt 0:00:23]} Kh3 {[%emt 0:00:11]} 53. Be3 {[%emt 0:00:56]} Be7 {[%emt 0:00:17]} 54. Bc1 {[%emt 0:01:14]} Bh4 {[%emt 0:00:29]} 55. Bd2 {[%emt 0:00:12]} Bg3 {[%emt 0:00:06]} 56. Bc1 {[%emt 0:02:12]} Be1 {[%emt 0:00:06]} 57. Bb2 {[%emt 0:00:05]} Bd2 {[%emt 0:00:05]} 58. Ne4 {[%emt 0:07:47]} Bb7 {[%emt 0:00:13]} 59. Ke2 {[%emt 0:00:18]} Bxf4 {[%emt 0:00:50]} 60. Nf2+ {[%emt 0:01:20]} Kg2 {[%emt 0:00:17]} 61. Nd1 {[%emt 0:01:41]} Bf3+ {[%emt 0:00:21]} 62. Ke1 {[%emt 0:00:01]} Bxd1 {[%emt 0:00:14]} 0-1